[Event "*** Titled Tuesday Blitz"]
[Site "Chess.com"]
[Date "2020.04.07"]
[Round "1"]
[White "ChelsieMonica"]
[Black "GMBenjaminFinegold"]
[Result "1/2-1/2"]
[WhiteElo "2229"]
[BlackElo "2571"]
[TimeControl "180+1"]
[EndTime "13:07:39 PDT"]
[Termination "Game drawn by repetition"]

1. c4 {[%clk 0:02:58.6]} 1... b6 {[%clk 0:02:58.7]} 2. Nf3 {[%clk 0:02:57.8]}
2... Bb7 {[%clk 0:02:55.9]} 3. Nc3 {[%clk 0:02:58.1]} 3... c5 {[%clk 0:02:54.2]}
4. e3 {[%clk 0:02:58]} 4... Nf6 {[%clk 0:02:53]} 5. d4 {[%clk 0:02:58.3]} 5...
g6 {[%clk 0:02:51.4]} 6. Be2 {[%clk 0:02:58.4]} 6... Bg7 {[%clk 0:02:51.5]} 7.
d5 {[%clk 0:02:58.3]} 7... O-O {[%clk 0:02:50.9]} 8. O-O {[%clk 0:02:58.4]} 8...
d6 {[%clk 0:02:51.1]} 9. a4 {[%clk 0:02:58.2]} 9... e5 {[%clk 0:02:49.9]} 10.
dxe6 {[%clk 0:02:57.7]} 10... fxe6 {[%clk 0:02:49.7]} 11. a5 {[%clk 0:02:58.1]}
11... bxa5 {[%clk 0:02:45]} 12. Ng5 {[%clk 0:02:58.3]} 12... Qe7 {[%clk
0:02:42.7]} 13. Rxa5 {[%clk 0:02:54.6]} 13... h6 {[%clk 0:02:41.2]} 14. Nf3
{[%clk 0:02:53.6]} 14... Nc6 {[%clk 0:02:40.9]} 15. Ra1 {[%clk 0:02:53.2]} 15...
g5 {[%clk 0:02:40.9]} 16. Nb5 {[%clk 0:02:52.4]} 16... Ne4 {[%clk 0:02:35.1]}
17. Nd2 {[%clk 0:02:45.2]} 17... Nf6 {[%clk 0:02:22.6]} 18. Nb3 {[%clk
0:02:33.9]} 18... a6 {[%clk 0:02:12.4]} 19. Nc3 {[%clk 0:02:17.3]} 19... Rad8
{[%clk 0:02:10.2]} 20. Bf3 {[%clk 0:02:08.6]} 20... Ne5 {[%clk 0:01:59.2]} 21.
Bxb7 {[%clk 0:02:07.6]} 21... Qxb7 {[%clk 0:02:00.1]} 22. Na5 {[%clk 0:02:07.7]}
22... Qa8 {[%clk 0:01:56.9]} 23. h3 {[%clk 0:02:07.7]} 23... g4 {[%clk
0:01:55.7]} 24. hxg4 {[%clk 0:02:03.2]} 24... Nexg4 {[%clk 0:01:48.2]} 25. e4
{[%clk 0:02:03.5]} 25... d5 {[%clk 0:01:41.6]} 26. cxd5 {[%clk 0:02:03.6]} 26...
exd5 {[%clk 0:01:35.8]} 27. exd5 {[%clk 0:02:03.8]} 27... Qb8 {[%clk 0:01:35.3]}
28. g3 {[%clk 0:01:59.3]} 28... h5 {[%clk 0:01:32.2]} 29. Nc6 {[%clk 0:01:56.4]}
29... Qd6 {[%clk 0:01:22.2]} 30. Bf4 {[%clk 0:01:54.8]} 30... Qd7 {[%clk
0:01:20.3]} 31. Nxd8 {[%clk 0:01:51.1]} 31... Rxd8 {[%clk 0:01:21.2]} 32. Rxa6
{[%clk 0:01:51]} 32... h4 {[%clk 0:01:13]} 33. Rd6 {[%clk 0:01:50.5]} 33... Qc8
{[%clk 0:01:10.7]} 34. Rxd8+ {[%clk 0:01:49.1]} 34... Qxd8 {[%clk 0:01:11.6]}
35. Qe2 {[%clk 0:01:47.4]} 35... hxg3 {[%clk 0:01:10.5]} 36. fxg3 {[%clk
0:01:46.4]} 36... c4 {[%clk 0:01:04.1]} 37. Qe6+ {[%clk 0:01:45.6]} 37... Kh7
{[%clk 0:00:55.5]} 38. Ne4 {[%clk 0:01:17.8]} 38... Qxd5 {[%clk 0:00:41.1]} 39.
Nxf6+ {[%clk 0:01:14.4]} 39... Nxf6 {[%clk 0:00:40.8]} 40. Qxd5 {[%clk
0:01:11.9]} 40... Nxd5 {[%clk 0:00:41.7]} 41. Bc1 {[%clk 0:01:11.6]} 41... Kg6
{[%clk 0:00:35.4]} 42. Kf2 {[%clk 0:01:09]} 42... Nb4 {[%clk 0:00:35.3]} 43. Ke3
{[%clk 0:01:00.2]} 43... Nd3 {[%clk 0:00:32.9]} 44. Ke4 {[%clk 0:01:00.4]} 44...
Nxb2 {[%clk 0:00:29.3]} 45. Bxb2 {[%clk 0:00:53.4]} 45... Bxb2 {[%clk
0:00:30.2]} 46. Rf2 {[%clk 0:00:43.8]} 46... c3 {[%clk 0:00:29.1]} 47. Kf3
{[%clk 0:00:43.5]} 47... Bc1 {[%clk 0:00:28.8]} 48. Rc2 {[%clk 0:00:40]} 48...
Bd2 {[%clk 0:00:29.7]} 49. Ra2 {[%clk 0:00:37.4]} 49... Kf6 {[%clk 0:00:29.1]}
50. g4 {[%clk 0:00:36.7]} 50... Kg6 {[%clk 0:00:29.2]} 51. Kg3 {[%clk
0:00:37.1]} 51... Kf6 {[%clk 0:00:29.4]} 52. Ra6+ {[%clk 0:00:36.3]} 52... Kg7
{[%clk 0:00:27.5]} 53. Rc6 {[%clk 0:00:36.2]} 53... Kf7 {[%clk 0:00:27.9]} 54.
Kh4 {[%clk 0:00:36.5]} 54... Ke7 {[%clk 0:00:28.3]} 55. Rc4 {[%clk 0:00:36.8]}
55... Kd6 {[%clk 0:00:28.3]} 56. g5 {[%clk 0:00:37.2]} 56... Kd5 {[%clk
0:00:28.8]} 57. Rc8 {[%clk 0:00:37.3]} 57... Kd4 {[%clk 0:00:27.6]} 58. Kh5
{[%clk 0:00:37.4]} 58... Bxg5 {[%clk 0:00:25.9]} 59. Kxg5 {[%clk 0:00:36.7]}
59... Kd3 {[%clk 0:00:26.6]} 60. Rd8+ {[%clk 0:00:36]} 60... Ke2 {[%clk
0:00:26.6]} 61. Rc8 {[%clk 0:00:34]} 61... Kd2 {[%clk 0:00:26.8]} 62. Rd8+
{[%clk 0:00:33.2]} 62... Ke2 {[%clk 0:00:27.1]} 63. Re8+ {[%clk 0:00:33.5]}
63... Kd2 {[%clk 0:00:27.2]} 64. Rd8+ {[%clk 0:00:33.3]} 64... Ke2 {[%clk
0:00:27.4]} 1/2-1/2

[Event "*** Titled Tuesday Blitz"]
[Site "Chess.com"]
[Date "2020.04.07"]
[Round "1"]
[White "SoltaniciR"]
[Black "BabyFacedAssasin"]
[Result "1-0"]
[WhiteElo "2648"]
[BlackElo "2314"]
[TimeControl "180+1"]
[EndTime "13:07:42 PDT"]
[Termination "SoltaniciR won by resignation"]

1. e4 {[%clk 0:03:00.6]} 1... e6 {[%clk 0:02:59.9]} 2. d4 {[%clk 0:03:00.1]}
2... d5 {[%clk 0:03:00.3]} 3. Bd3 {[%clk 0:03:00]} 3... c5 {[%clk 0:02:58.2]} 4.
Nf3 {[%clk 0:02:59.2]} 4... dxe4 {[%clk 0:02:55.8]} 5. Bxe4 {[%clk 0:02:58.8]}
5... Nf6 {[%clk 0:02:56.4]} 6. Bd3 {[%clk 0:02:58.6]} 6... cxd4 {[%clk
0:02:56.3]} 7. Nxd4 {[%clk 0:02:58]} 7... Bd7 {[%clk 0:02:51.7]} 8. O-O {[%clk
0:02:50.2]} 8... Nc6 {[%clk 0:02:51.6]} 9. Nb3 {[%clk 0:02:45.5]} 9... Be7
{[%clk 0:02:50.9]} 10. Nc3 {[%clk 0:02:43.4]} 10... O-O {[%clk 0:02:50.7]} 11.
Bf4 {[%clk 0:02:42.6]} 11... e5 {[%clk 0:02:50.2]} 12. Bg5 {[%clk 0:02:35.3]}
12... Be6 {[%clk 0:02:50.3]} 13. Re1 {[%clk 0:02:30.7]} 13... h6 {[%clk
0:02:48.3]} 14. Bh4 {[%clk 0:02:27.4]} 14... Nd5 {[%clk 0:02:43.6]} 15. Bxe7
{[%clk 0:02:20.2]} 15... Qxe7 {[%clk 0:02:39.4]} 16. Nxd5 {[%clk 0:02:07.7]}
16... Bxd5 {[%clk 0:02:40.3]} 17. c3 {[%clk 0:02:05]} 17... Rad8 {[%clk
0:02:31.7]} 18. Qe2 {[%clk 0:01:58.1]} 18... Qg5 {[%clk 0:02:28.5]} 19. f3
{[%clk 0:01:36.7]} 19... f5 {[%clk 0:02:23.8]} 20. Rad1 {[%clk 0:01:34]} 20...
Rfe8 {[%clk 0:02:04.6]} 21. Qe3 {[%clk 0:01:07.6]} 21... f4 {[%clk 0:02:00.7]}
22. Qf2 {[%clk 0:00:59.1]} 22... h5 {[%clk 0:01:57.2]} 23. Nc5 {[%clk
0:00:56.5]} 23... h4 {[%clk 0:01:54.5]} 24. Nxb7 {[%clk 0:00:47.5]} 24... Rb8
{[%clk 0:01:40.5]} 25. Nd6 {[%clk 0:00:47.4]} 25... Red8 {[%clk 0:01:36.7]} 26.
Ne4 {[%clk 0:00:45.7]} 26... Bxe4 {[%clk 0:01:32.3]} 27. Bxe4 {[%clk 0:00:45.2]}
27... Ne7 {[%clk 0:01:30.6]} 28. b4 {[%clk 0:00:37.3]} 28... h3 {[%clk
0:01:24.5]} 29. Kh1 {[%clk 0:00:36.1]} 29... Rxd1 {[%clk 0:01:22.9]} 30. Rxd1
{[%clk 0:00:35.3]} 30... Nf5 {[%clk 0:01:16.9]} 31. gxh3 {[%clk 0:00:27.9]}
31... Ne3 {[%clk 0:00:58.1]} 32. Rg1 {[%clk 0:00:27.4]} 32... Qh5 {[%clk
0:00:54.2]} 33. Qd2 {[%clk 0:00:21.9]} 33... Rf8 {[%clk 0:00:22.7]} 34. Qd7
{[%clk 0:00:20.8]} 34... Qf7 {[%clk 0:00:20]} 35. Qxf7+ {[%clk 0:00:18.2]} 35...
Rxf7 {[%clk 0:00:20.9]} 36. c4 {[%clk 0:00:18.4]} 36... a5 {[%clk 0:00:14.1]}
37. a3 {[%clk 0:00:17.8]} 37... axb4 {[%clk 0:00:13.8]} 38. axb4 {[%clk
0:00:18.7]} 38... Rc7 {[%clk 0:00:13.8]} 39. c5 {[%clk 0:00:17.8]} 39... Kf7
{[%clk 0:00:14]} 40. Rc1 {[%clk 0:00:16.7]} 40... g5 {[%clk 0:00:13.9]} 41. b5
{[%clk 0:00:17.1]} 41... Ke6 {[%clk 0:00:13.7]} 42. b6 {[%clk 0:00:17.2]} 42...
Rc8 {[%clk 0:00:10.2]} 43. c6 {[%clk 0:00:17]} 43... Kd6 {[%clk 0:00:07]} 44. b7
{[%clk 0:00:16.4]} 44... Rh8 {[%clk 0:00:06]} 45. c7 {[%clk 0:00:16.2]} 1-0

[Event "*** Titled Tuesday Blitz"]
[Site "Chess.com"]
[Date "2020.04.07"]
[Round "1"]
[White "Gentlejimmy7"]
[Black "meridaandres"]
[Result "1-0"]
[WhiteElo "2605"]
[BlackElo "2267"]
[TimeControl "180+1"]
[EndTime "13:07:42 PDT"]
[Termination "Gentlejimmy7 won on time"]

1. d4 {[%clk 0:03:00.9]} 1... g6 {[%clk 0:03:00.6]} 2. g3 {[%clk 0:03:00.9]}
2... Nf6 {[%clk 0:03:00.6]} 3. Bg2 {[%clk 0:03:01.8]} 3... Bg7 {[%clk 0:03:01]}
4. Nf3 {[%clk 0:03:02.7]} 4... O-O {[%clk 0:03:01.3]} 5. O-O {[%clk 0:03:03.6]}
5... d6 {[%clk 0:02:57.8]} 6. b3 {[%clk 0:03:00.8]} 6... Nc6 {[%clk 0:02:55.2]}
7. Bb2 {[%clk 0:02:59.7]} 7... a6 {[%clk 0:02:46.3]} 8. a4 {[%clk 0:02:51.3]}
8... Rb8 {[%clk 0:02:42.9]} 9. d5 {[%clk 0:02:42.8]} 9... Na7 {[%clk 0:02:39.4]}
10. Re1 {[%clk 0:02:32.5]} 10... c6 {[%clk 0:02:34.9]} 11. e4 {[%clk 0:02:30]}
11... Bg4 {[%clk 0:02:23]} 12. h3 {[%clk 0:02:28.9]} 12... Bxf3 {[%clk
0:02:22.9]} 13. Qxf3 {[%clk 0:02:28.8]} 13... Nc8 {[%clk 0:02:16.9]} 14. Nd2
{[%clk 0:02:26.3]} 14... cxd5 {[%clk 0:02:11.8]} 15. exd5 {[%clk 0:02:25.5]}
15... Nb6 {[%clk 0:02:08.5]} 16. Qd3 {[%clk 0:02:20]} 16... Nbd7 {[%clk
0:02:06.2]} 17. Rab1 {[%clk 0:02:09.9]} 17... b5 {[%clk 0:02:04.5]} 18. axb5
{[%clk 0:02:08.1]} 18... axb5 {[%clk 0:02:05.4]} 19. Qe2 {[%clk 0:02:03.8]}
19... Re8 {[%clk 0:02:05]} 20. Ne4 {[%clk 0:02:01.5]} 20... Qc7 {[%clk
0:02:00.3]} 21. Nxf6+ {[%clk 0:02:00.6]} 21... Nxf6 {[%clk 0:01:58.5]} 22. Qd3
{[%clk 0:01:56.1]} 22... b4 {[%clk 0:01:54.6]} 23. Re2 {[%clk 0:01:55.8]} 23...
Ra8 {[%clk 0:01:41.4]} 24. Rbe1 {[%clk 0:01:54.5]} 24... Kf8 {[%clk 0:01:38.8]}
25. Bd4 {[%clk 0:01:46.7]} 25... Ra2 {[%clk 0:01:33.3]} 26. h4 {[%clk
0:01:31.6]} 26... h5 {[%clk 0:01:32.5]} 27. Bh3 {[%clk 0:01:11.8]} 27... Qa5
{[%clk 0:01:14.9]} 28. c4 {[%clk 0:01:08.7]} 28... bxc3 {[%clk 0:00:58.1]} 29.
Rxa2 {[%clk 0:01:08]} 29... Qxa2 {[%clk 0:00:57.5]} 30. Qxc3 {[%clk 0:01:08.2]}
30... Qa8 {[%clk 0:00:48.5]} 31. Bd7 {[%clk 0:00:56.4]} 31... Rd8 {[%clk
0:00:40.5]} 32. Bc6 {[%clk 0:00:55.2]} 32... Qc8 {[%clk 0:00:33.4]} 33. b4
{[%clk 0:00:53.3]} 33... Qf5 {[%clk 0:00:32.7]} 34. b5 {[%clk 0:00:46.7]} 34...
Rb8 {[%clk 0:00:29.2]} 35. b6 {[%clk 0:00:45.2]} 35... Kg8 {[%clk 0:00:27.2]}
36. b7 {[%clk 0:00:44.5]} 36... Ng4 {[%clk 0:00:25.9]} 37. Re2 {[%clk
0:00:29.8]} 37... Bxd4 {[%clk 0:00:25]} 38. Qxd4 {[%clk 0:00:29.5]} 38... Ne5
{[%clk 0:00:25.9]} 39. Qa7 {[%clk 0:00:24.1]} 39... Qb1+ {[%clk 0:00:20]} 40.
Kg2 {[%clk 0:00:23.5]} 40... Qd3 {[%clk 0:00:12.9]} 41. Qxb8+ {[%clk 0:00:22.2]}
41... Kh7 {[%clk 0:00:13.8]} 42. Re3 {[%clk 0:00:21.4]} 42... Qd1 {[%clk
0:00:05.8]} 43. Rxe5 {[%clk 0:00:21]} 1-0

[Event "*** Titled Tuesday Blitz"]
[Site "Chess.com"]
[Date "2020.04.07"]
[Round "1"]
[White "narutosmith"]
[Black "chabo96"]
[Result "0-1"]
[WhiteElo "2209"]
[BlackElo "2585"]
[TimeControl "180+1"]
[EndTime "13:07:42 PDT"]
[Termination "chabo96 won on time"]

1. c4 {[%clk 0:03:00.6]} 1... Nf6 {[%clk 0:02:59.6]} 2. Nc3 {[%clk 0:03:00.1]}
2... g6 {[%clk 0:02:59.6]} 3. g3 {[%clk 0:02:59.6]} 3... Bg7 {[%clk 0:02:59.5]}
4. Bg2 {[%clk 0:03:00.2]} 4... O-O {[%clk 0:02:59.8]} 5. e4 {[%clk 0:03:00.1]}
5... c5 {[%clk 0:02:55.2]} 6. Nge2 {[%clk 0:02:59.9]} 6... Nc6 {[%clk
0:02:55.7]} 7. O-O {[%clk 0:02:58.6]} 7... Ne8 {[%clk 0:02:56.3]} 8. d3 {[%clk
0:02:54.8]} 8... Nc7 {[%clk 0:02:56.4]} 9. Be3 {[%clk 0:02:52.2]} 9... Ne6
{[%clk 0:02:56.4]} 10. Rb1 {[%clk 0:02:51.7]} 10... Ned4 {[%clk 0:02:52.1]} 11.
a3 {[%clk 0:02:43.4]} 11... a5 {[%clk 0:02:44.6]} 12. b3 {[%clk 0:02:32.2]}
12... d6 {[%clk 0:02:39.7]} 13. h3 {[%clk 0:02:30.4]} 13... Bd7 {[%clk 0:02:38]}
14. Kh2 {[%clk 0:02:25.5]} 14... Kh8 {[%clk 0:02:33]} 15. Qd2 {[%clk 0:02:21.1]}
15... f5 {[%clk 0:02:29.6]} 16. Bh6 {[%clk 0:02:16]} 16... e6 {[%clk 0:02:09.8]}
17. Bxg7+ {[%clk 0:02:13.4]} 17... Kxg7 {[%clk 0:02:10.7]} 18. Nb5 {[%clk
0:02:05.2]} 18... Nxb5 {[%clk 0:01:59]} 19. cxb5 {[%clk 0:02:02]} 19... Nd4
{[%clk 0:01:55]} 20. Nxd4 {[%clk 0:02:00.8]} 20... cxd4 {[%clk 0:01:54.5]} 21.
exf5 {[%clk 0:01:57]} 21... Rxf5 {[%clk 0:01:53.5]} 22. Bxb7 {[%clk 0:01:53.8]}
22... Rb8 {[%clk 0:01:44.4]} 23. Bc6 {[%clk 0:01:48.5]} 23... Bxc6 {[%clk
0:01:32.7]} 24. bxc6 {[%clk 0:01:49.4]} 24... Qb6 {[%clk 0:01:33.2]} 25. Rfc1
{[%clk 0:01:40.7]} 25... Rc8 {[%clk 0:01:28.6]} 26. Rb2 {[%clk 0:01:04.7]} 26...
Rxc6 {[%clk 0:01:23.3]} 27. Rxc6 {[%clk 0:01:03.8]} 27... Qxc6 {[%clk
0:01:24.2]} 28. Qc2 {[%clk 0:00:34.4]} 28... Qxc2 {[%clk 0:01:14.9]} 29. Rxc2
{[%clk 0:00:33.7]} 29... Rb5 {[%clk 0:01:09.7]} 30. Rb2 {[%clk 0:00:32]} 30...
Kf6 {[%clk 0:01:05]} 31. Kg2 {[%clk 0:00:29.2]} 31... Ke5 {[%clk 0:01:04.9]} 32.
Kf3 {[%clk 0:00:27.4]} 32... Kd5 {[%clk 0:01:05]} 33. Kg4 {[%clk 0:00:25.3]}
33... h6 {[%clk 0:01:04.1]} 34. Kf4 {[%clk 0:00:24.3]} 34... e5+ {[%clk
0:01:02.4]} 35. Kf3 {[%clk 0:00:23.3]} 35... Rc5 {[%clk 0:01:02.7]} 36. b4
{[%clk 0:00:21.6]} 36... Rc3 {[%clk 0:00:59.4]} 37. b5 {[%clk 0:00:18.2]} 37...
Rxd3+ {[%clk 0:00:49.1]} 38. Ke2 {[%clk 0:00:18.2]} 38... Rc3 {[%clk 0:00:44.1]}
39. b6 {[%clk 0:00:13.3]} 39... Rc8 {[%clk 0:00:44.5]} 40. Rb5+ {[%clk 0:00:12]}
40... Kc6 {[%clk 0:00:43.9]} 41. b7 {[%clk 0:00:08.2]} 41... Rb8 {[%clk
0:00:43.7]} 42. Rxa5 {[%clk 0:00:07.6]} 42... Rxb7 {[%clk 0:00:42.9]} 43. Ra8
{[%clk 0:00:06.7]} 43... e4 {[%clk 0:00:40.1]} 44. a4 {[%clk 0:00:05.6]} 44...
Rb2+ {[%clk 0:00:40.2]} 45. Ke1 {[%clk 0:00:05.1]} 45... Ra2 {[%clk 0:00:40.8]}
46. Rf8 {[%clk 0:00:03]} 46... Kd5 {[%clk 0:00:34.4]} 47. Rf6 {[%clk 0:00:02.6]}
47... Kc4 {[%clk 0:00:34.5]} 48. Rxd6 {[%clk 0:00:02.5]} 48... Kd3 {[%clk
0:00:34.7]} 49. Kf1 {[%clk 0:00:01]} 49... Ra1+ {[%clk 0:00:27.9]} 0-1

[Event "*** Titled Tuesday Blitz"]
[Site "Chess.com"]
[Date "2020.04.07"]
[Round "1"]
[White "FMAntonio"]
[Black "Dare-Dare"]
[Result "1-0"]
[WhiteElo "2535"]
[BlackElo "2140"]
[TimeControl "180+1"]
[EndTime "13:07:42 PDT"]
[Termination "FMAntonio won by resignation"]

1. d4 {[%clk 0:02:56.6]} 1... d6 {[%clk 0:02:59.4]} 2. e4 {[%clk 0:02:54.8]}
2... e5 {[%clk 0:02:59.1]} 3. dxe5 {[%clk 0:02:51.8]} 3... dxe5 {[%clk 0:03:00]}
4. Qxd8+ {[%clk 0:02:51.5]} 4... Kxd8 {[%clk 0:03:00.9]} 5. Bc4 {[%clk 0:02:47]}
5... f6 {[%clk 0:03:00.7]} 6. f4 {[%clk 0:02:44.7]} 6... Nd7 {[%clk 0:02:55.9]}
7. Nf3 {[%clk 0:02:43.8]} 7... Bd6 {[%clk 0:02:55.8]} 8. fxe5 {[%clk 0:02:33.1]}
8... Nxe5 {[%clk 0:02:56.7]} 9. Nxe5 {[%clk 0:02:33.2]} 9... Bxe5 {[%clk
0:02:57.6]} 10. O-O {[%clk 0:02:33]} 10... c6 {[%clk 0:02:56.8]} 11. c3 {[%clk
0:02:29.3]} 11... Ne7 {[%clk 0:02:56.4]} 12. Be3 {[%clk 0:02:25.9]} 12... Kc7
{[%clk 0:02:56]} 13. Nd2 {[%clk 0:02:25.3]} 13... Bd6 {[%clk 0:02:39.6]} 14. Nf3
{[%clk 0:02:17.2]} 14... Ng6 {[%clk 0:02:35.5]} 15. Rad1 {[%clk 0:02:13.8]}
15... Bg4 {[%clk 0:02:29.7]} 16. h3 {[%clk 0:02:04]} 16... Bxf3 {[%clk
0:02:28.9]} 17. gxf3 {[%clk 0:02:03.6]} 17... Bf4 {[%clk 0:02:21.4]} 18. Bd4
{[%clk 0:01:57.5]} 18... b6 {[%clk 0:02:10.6]} 19. b4 {[%clk 0:01:56.9]} 19...
Rad8 {[%clk 0:02:03.7]} 20. a4 {[%clk 0:01:50.3]} 20... Be5 {[%clk 0:01:39.1]}
21. a5 {[%clk 0:01:43.8]} 21... Bxd4+ {[%clk 0:01:37.2]} 22. cxd4 {[%clk
0:01:42.3]} 22... Rd7 {[%clk 0:01:30.3]} 23. axb6+ {[%clk 0:01:39.5]} 23... axb6
{[%clk 0:01:31.2]} 24. b5 {[%clk 0:01:33.3]} 24... Rhd8 {[%clk 0:01:18.4]} 25.
d5 {[%clk 0:01:32.4]} 25... cxd5 {[%clk 0:01:16.9]} 26. Bxd5 {[%clk 0:01:30.2]}
26... Nf4 {[%clk 0:01:10]} 27. Rc1+ {[%clk 0:01:00.7]} 27... Kb8 {[%clk
0:01:10.2]} 28. Rc6 {[%clk 0:00:57.9]} 28... Nxd5 {[%clk 0:01:09.2]} 29. exd5
{[%clk 0:00:57.2]} 29... Rxd5 {[%clk 0:00:54]} 30. Rxb6+ {[%clk 0:00:56.9]}
30... Kc7 {[%clk 0:00:54.5]} 31. Rc6+ {[%clk 0:00:50.7]} 31... Kd7 {[%clk
0:00:54.6]} 32. Rb6 {[%clk 0:00:39.3]} 32... Rc8 {[%clk 0:00:49.4]} 33. Rf2
{[%clk 0:00:32.7]} 33... Rd6 {[%clk 0:00:43.1]} 34. Rb7+ {[%clk 0:00:32.4]}
34... Rc7 {[%clk 0:00:43.1]} 35. Rb8 {[%clk 0:00:32.7]} 35... Rc8 {[%clk
0:00:41]} 36. Rb7+ {[%clk 0:00:32.8]} 36... Rc7 {[%clk 0:00:41.4]} 37. Rxc7+
{[%clk 0:00:29.8]} 37... Kxc7 {[%clk 0:00:41.5]} 38. Re2 {[%clk 0:00:29.9]}
38... Rd7 {[%clk 0:00:38.6]} 39. Re6 {[%clk 0:00:29.9]} 39... h5 {[%clk
0:00:28.2]} 40. Kf2 {[%clk 0:00:29.8]} 40... Rd5 {[%clk 0:00:26.7]} 41. Re7+
{[%clk 0:00:29.2]} 41... Kd6 {[%clk 0:00:26]} 42. Rxg7 {[%clk 0:00:29]} 42...
Rxb5 {[%clk 0:00:26.3]} 43. Kg3 {[%clk 0:00:29.3]} 43... Ke6 {[%clk 0:00:24.9]}
44. Rh7 {[%clk 0:00:29.3]} 44... Rf5 {[%clk 0:00:23.4]} 45. Rh8 {[%clk 0:00:28]}
45... Rg5+ {[%clk 0:00:21.9]} 46. Kf4 {[%clk 0:00:27.6]} 46... Rf5+ {[%clk
0:00:21.6]} 47. Kg3 {[%clk 0:00:27.1]} 47... Rg5+ {[%clk 0:00:22]} 48. Kf2
{[%clk 0:00:27.6]} 48... Kf5 {[%clk 0:00:21.8]} 49. h4 {[%clk 0:00:27]} 49...
Rg7 {[%clk 0:00:19.6]} 50. Rxh5+ {[%clk 0:00:27.1]} 50... Kg6 {[%clk 0:00:20.5]}
51. Rh8 {[%clk 0:00:26.9]} 51... Ra7 {[%clk 0:00:19.6]} 52. Kg3 {[%clk
0:00:24.6]} 52... Ra4 {[%clk 0:00:19.1]} 53. Rg8+ {[%clk 0:00:24.6]} 53... Kh6
{[%clk 0:00:19.2]} 54. Rg4 {[%clk 0:00:24.1]} 54... Ra5 {[%clk 0:00:19]} 55. Rf4
{[%clk 0:00:23.9]} 55... Kg6 {[%clk 0:00:18.7]} 56. Kg4 {[%clk 0:00:23.8]} 56...
Rh5 {[%clk 0:00:18.1]} 57. Rxf6+ {[%clk 0:00:23.4]} 57... Kxf6 {[%clk
0:00:16.3]} 58. Kxh5 {[%clk 0:00:23.5]} 58... Kf5 {[%clk 0:00:17.2]} 59. f4
{[%clk 0:00:22.3]} 1-0

[Event "*** Titled Tuesday Blitz"]
[Site "Chess.com"]
[Date "2020.04.07"]
[Round "1"]
[White "DonBroca"]
[Black "TST2014"]
[Result "0-1"]
[WhiteElo "2068"]
[BlackElo "2521"]
[TimeControl "180+1"]
[EndTime "13:07:42 PDT"]
[Termination "TST2014 won on time"]

1. e4 {[%clk 0:02:59.5]} 1... c5 {[%clk 0:02:59]} 2. Nf3 {[%clk 0:02:59.1]} 2...
Nc6 {[%clk 0:02:55.5]} 3. d4 {[%clk 0:02:57.8]} 3... cxd4 {[%clk 0:02:54]} 4.
Nxd4 {[%clk 0:02:58.7]} 4... Nf6 {[%clk 0:02:52.7]} 5. Nc3 {[%clk 0:02:58.6]}
5... d6 {[%clk 0:02:51.7]} 6. Bg5 {[%clk 0:02:56.2]} 6... e6 {[%clk 0:02:51.4]}
7. Qd2 {[%clk 0:02:55.5]} 7... a6 {[%clk 0:02:51.3]} 8. O-O-O {[%clk 0:02:55.4]}
8... Bd7 {[%clk 0:02:50.7]} 9. f4 {[%clk 0:02:52.7]} 9... h6 {[%clk 0:02:50]}
10. Bxf6 {[%clk 0:02:45.7]} 10... Qxf6 {[%clk 0:02:49.1]} 11. e5 {[%clk
0:02:24.8]} 11... dxe5 {[%clk 0:02:47.3]} 12. Ndb5 {[%clk 0:02:19.8]} 12... Qd8
{[%clk 0:02:42.7]} 13. Nd6+ {[%clk 0:02:06]} 13... Bxd6 {[%clk 0:02:42.3]} 14.
Qxd6 {[%clk 0:02:06.9]} 14... exf4 {[%clk 0:02:37.9]} 15. Qxf4 {[%clk
0:02:06.2]} 15... O-O {[%clk 0:02:26.3]} 16. Kb1 {[%clk 0:01:49.1]} 16... Qb8
{[%clk 0:02:11.1]} 17. Qg4 {[%clk 0:01:36]} 17... Ne5 {[%clk 0:02:06.8]} 18. Qh5
{[%clk 0:01:21.6]} 18... Bc6 {[%clk 0:02:03.6]} 19. Bd3 {[%clk 0:00:52.9]} 19...
Nxd3 {[%clk 0:01:57.2]} 20. Rxd3 {[%clk 0:00:53.8]} 20... Qf4 {[%clk 0:01:40.8]}
21. Rg3 {[%clk 0:00:41.5]} 21... Rad8 {[%clk 0:01:29.4]} 22. a3 {[%clk
0:00:24.8]} 22... Rd2 {[%clk 0:01:23.9]} 23. Ne2 {[%clk 0:00:11.3]} 23... Qe4
{[%clk 0:01:11.2]} 24. Rc1 {[%clk 0:00:02.9]} 24... Rxe2 {[%clk 0:00:59.3]} 25.
Qxh6 {[%clk 0:00:03.3]} 25... Qh7 {[%clk 0:00:50.8]} 26. Qf4 {[%clk 0:00:03.5]}
26... Rxg2 {[%clk 0:00:27.7]} 27. Rxg2 {[%clk 0:00:02.7]} 27... Bxg2 {[%clk
0:00:28.1]} 28. Rg1 {[%clk 0:00:03.6]} 28... Be4 {[%clk 0:00:26]} 29. h4 {[%clk
0:00:02.7]} 29... Bxc2+ {[%clk 0:00:25.5]} 30. Ka2 {[%clk 0:00:03.1]} 30... Bg6
{[%clk 0:00:17]} 31. Qg5 {[%clk 0:00:02.3]} 31... Qh5 {[%clk 0:00:15.6]} 32. Qg3
{[%clk 0:00:02.7]} 32... Qd5+ {[%clk 0:00:15.1]} 33. Ka1 {[%clk 0:00:03.2]}
33... Rd8 {[%clk 0:00:13.7]} 34. Qe1 {[%clk 0:00:01.3]} 34... Qf3 {[%clk
0:00:08.9]} 0-1